bitfinex/quotes_SOLUSD_20240925
["timestamp","ask_amount","ask_price","bid_price","bid_amount"]
[1727285932463,6.6666,150.0,149.93,18.72863007]
[1727285932638,49.9854,150.05,149.94,23.776884]
[1727285932639,6.6661,150.02,149.94,23.776884]
[1727285932951,6.6654,150.03,149.96,15.1559]
[1727285933146,6.6654,150.03,149.98,6.1331]
[1727285933550,6.6658,150.02,149.98,6.1331]
[1727285935046,20.0,150.05,149.98,6.1331]
[1727285935253,6.665,150.04,149.98,6.1331]
[1727285935950,49.971,150.09,149.98,6.1331]
[1727285935951,6.664,150.06,149.99,18.72863007]
[1727285936953,6.6644,150.05,149.99,18.72863007]
[1727285937962,1.66647564,150.08,150.0,15.863]
[1727285937963,6.6641,150.06,150.0,15.863]
[1727285938784,1.66647564,150.08,150.0,15.863]
[1727285938785,6.6645,150.05,150.0,15.863]
[1727285940254,6.6641,150.06,150.0,15.863]
[1727285940562,21.66647564,150.08,150.0,15.863]
[1727285940740,6.6636,150.07,150.0,15.863]
[1727285940947,8.32975389,150.07,150.0,15.863]
[1727285941148,1.66615389,150.07,150.0,15.863]
[1727285941353,6.664,150.06,150.0,15.863]
[1727285942366,1.66616509,150.05,150.0,15.863]
[1727285942562,6.6651,150.04,150.0,15.863]
[1727285943143,33.313,150.1,150.0,15.863]
[1727285943144,6.93294794,150.13,150.08,23.776884]
[1727285943378,40.13,150.25,150.1,18.72863007]
[1727285943379,2.82247305,150.25,150.1,18.72863007]
[1727285943661,8.59390079,150.24,150.12,6.6611]
[1727285944056,6.6596,150.16,150.12,6.6611]
[1727285944257,8.32552024,150.15,150.11,6.6617]
[1727285944457,6.66,150.15,150.11,6.6617]
[1727285944771,6.6596,150.16,150.11,6.6617]
[1727285944957,1.66519083,150.15,150.11,6.6617]
[1727285945675,8.32519083,150.15,150.11,6.6617]
[1727285945876,1.66525835,150.14,150.08,18.72863007]
[1727285946044,1.66525835,150.14,150.07,35.017]
[1727285946251,6.6621,150.11,150.07,15.017]
[1727285946450,6.6613,150.12,150.07,15.017]
[1727285946753,8.32749844,150.11,150.07,15.017]
[1727285946953,6.6618,150.11,150.07,15.017]
[1727285948378,6.6614,150.12,150.07,21.6802]
[1727285948562,6.6614,150.12,150.07,15.017]
[1727285948876,6.6609,150.13,150.08,7.99508033]
[1727285949057,6.6609,150.13,150.09,6.6624]
[1727285949262,26.6601,150.15,150.1,6.6621]
[1727285950270,1.66536462,150.14,150.07,15.017]
[1727285950476,6.6609,150.13,150.08,6.663]
[1727285950691,1.66541303,150.12,150.08,6.6629]
[1727285951053,6.6614,150.12,150.07,21.6804]
[1727285951345,1.66564211,150.11,150.07,21.6804]
[1727285952144,1.66564211,150.11,150.07,15.017]
[1727285952346,6.6623,150.1,150.07,15.017]
[1727285952556,6.6625,150.1,150.07,15.017]
[1727285952757,6.6622,150.1,150.07,15.017]
[1727285953274,23.776884,150.13,150.07,15.017]
[1727285953481,6.6627,150.09,150.07,15.017]
[1727285953655,23.776884,150.11,150.03,34.57903007]
[1727285953860,6.6635,150.07,150.03,22.5152]
[1727285954086,6.664,150.06,150.03,15.8504]
[1727285954972,1.66621862,150.05,150.03,15.8504]
[1727285955165,16.6571,150.09,150.0,13.0558]
[1727285955363,6.6645,150.05,150.0,13.0558]
[1727285955759,23.776884,150.08,150.0,13.0558]
[1727285956083,23.776884,150.08,149.99,34.75623007]
[1727285956084,6.6656,150.03,149.99,16.0276]
[1727285956257,1.66660271,150.02,149.99,16.0276]
[1727285956590,36.6593,150.07,149.91,8.93751377]
[1727285956591,40.06,150.04,149.92,15.9828]
[1727285956790,45.50399373,150.03,149.92,15.9828]
[1727285956962,20.0,150.02,149.92,15.9828]
[1727285957290,23.776884,150.01,149.92,15.9828]
[1727285957462,6.6674,149.99,149.94,6.6692]
[1727285957663,21.66711221,150.02,149.92,15.9828]
[1727285957887,6.6667,150.0,149.95,6.6685]
[1727285958185,20.0,150.04,149.94,1.33355732]
[1727285958361,6.6662,150.01,149.96,6.6683]
[1727285958762,6.665,150.04,149.99,6.6667]
[1727285959085,6.6645,150.05,150.0,7.99984214]
[1727285959272,6.6645,150.05,150.0,22.0859]
[1727285959462,36.6549,150.11,150.0,16.75242202]
[1727285959787,6.664,150.06,150.01,6.6661]
[1727285960171,18.32123468,150.11,150.0,15.4193]
[1727285960471,6.664,150.06,150.02,6.6655]
[1727285960696,6.664,150.06,150.01,6.6661]
[1727285960989,6.664,150.06,150.02,6.6656]
[1727285961201,6.6635,150.07,150.03,6.6652]
[1727285961403,20.0,150.1,150.02,6.6654]
[1727285961604,6.6636,150.07,150.02,6.6654]
[1727285962572,20.0,150.1,150.01,1.33295973]
[1727285962772,6.6631,150.08,150.04,6.6647]
[1727285963079,1.66597859,150.07,150.03,6.6652]
[1727285963280,6.6631,150.08,150.03,6.6652]
[1727285964573,8.32977729,150.07,150.03,6.6652]
[1727285964782,1.66608008,150.09,150.0,15.4193]
[1727285965002,20.0,150.1,150.02,6.6656]
[1727285965178,23.776884,150.09,150.02,6.6656]
[1727285965375,6.664,150.06,150.02,6.6656]
[1727285966505,6.6636,150.07,150.02,6.6656]
[1727285967098,6.664,150.06,150.02,6.6656]
[1727285968408,23.776884,150.09,150.0,15.4193]
[1727285968607,16.6606,150.06,149.96,22.3369]
[1727285968900,23.776884,150.03,149.96,15.6687]
[1727285969082,6.6671,149.99,149.96,15.6687]
[1727285969415,20.0,150.02,149.96,15.6687]
[1727285969585,6.668,149.97,149.92,22.3388]
[1727285969776,1.6671818,150.0,149.92,15.6687]
[1727285969982,6.668,149.97,149.92,22.3388]
[1727285970389,1.6671818,150.0,149.92,22.3388]
[1727285970390,1.6671818,150.0,149.92,15.6687]
[1727285970698,6.6676,149.98,149.93,6.6697]
[1727285971411,1.66718167,149.97,149.93,6.6697]
[1727285972300,6.6676,149.98,149.93,6.6697]
[1727285973500,6.6673,149.99,149.94,6.6692]
[1727285973808,8.33462541,149.98,149.92,15.6687]
[1727285974000,20.0,150.02,149.92,15.6687]
[1727285974210,6.6674,149.99,149.94,6.6692]
[1727285975402,1.66702105,150.01,149.95,6.6686]
[1727285975704,6.6671,149.99,149.94,6.6692]
[1727285975872,8.33464593,149.98,149.92,15.6687]
[1727285976077,1.66717959,149.97,149.92,15.6687]
[1727285976299,6.668,149.97,149.92,22.3384]
[1727285976498,1.66717908,149.96,149.92,15.6687]
[1727285977595,6.6693,149.95,149.9,6.6711]
[1727285978182,1.66748243,149.94,149.88,16.1765]
[1727285978381,23.776884,149.97,149.88,16.1765]
[1727285978614,21.66757162,149.98,149.88,16.1765]
[1727285978615,1.66764932,149.96,149.88,16.1765]
[1727285978785,6.6693,149.95,149.89,6.6714]
[1727285979114,6.6695,149.94,149.89,6.6714]
[1727285979294,6.6698,149.93,149.88,16.1765]
[1727285980305,6.6689,149.95,149.9,6.6709]
[1727285980509,20.0,149.98,149.88,34.898448]
[1727285980812,6.6687,149.96,149.91,6.6705]
[1727285981010,6.6689,149.95,149.91,6.6705]
[1727285981709,6.6689,149.95,149.9,6.671]
[1727285982008,6.6694,149.94,149.89,6.6711]
[1727285982189,6.6689,149.95,149.9,8.00499826]
[1727285982702,6.6689,149.95,149.9,6.671]
[1727285984906,20.0,149.97,149.88,34.898448]
[1727285985110,6.6689,149.95,149.9,6.671]
[1727285985807,8.33693467,149.94,149.9,6.671]
[1727285986114,6.6688,149.96,149.91,8.00448314]
[1727285986327,6.6688,149.96,149.91,6.6705]
[1727285986916,6.6675,149.98,149.93,6.6697]
[1727285987227,6.6674,149.99,149.94,8.00297114]
[1727285987508,1.66707055,149.98,149.94,6.6692]
[1727285987718,6.6676,149.98,149.94,6.6692]
[1727285988796,6.6672,149.99,149.94,6.6692]
[1727285989107,6.6668,150.0,149.96,6.6683]
[1727285989308,6.6668,150.0,149.95,6.6688]
[1727285991719,1.66692229,149.99,149.95,6.6688]
[1727285991920,6.6668,150.0,149.95,6.6688]
[1727285992423,8.33442238,149.99,149.94,6.6693]
[1727285992608,16.6639,150.03,149.94,6.6693]
[1727285992803,6.6672,149.99,149.94,6.6693]
[1727285993209,8.33430023,149.99,149.94,6.6693]
[1727285993719,1.66710023,149.99,149.94,6.6693]
[1727285993935,6.6676,149.98,149.94,6.6693]
[1727285997698,1.66710256,149.97,149.93,6.6696]
[1727285997902,6.6676,149.98,149.93,6.6696]
[1727286000432,20.0,150.01,149.94,8.00275131]
[1727286000607,20.0,150.01,149.95,6.6687]
[1727286000608,6.6671,149.99,149.95,6.6687]
[1727286001356,20.0,150.01,149.95,15.5174]
[1727286001544,6.6658,150.02,149.98,6.6675]
[1727286002053,16.6606,150.06,149.97,18.721948]
[1727286002226,6.6654,150.03,149.97,18.721948]
[1727286002617,6.6654,150.03,149.99,6.6667]
[1727286003519,1.6665732,150.02,149.97,18.721948]
[1727286003725,6.6654,150.03,149.98,6.6674]
[1727286004040,6.6654,150.03,149.99,6.6669]
[1727286004736,8.33246685,150.02,149.97,6.6675]
[1727286004925,8.3331339,150.01,149.97,6.6676]
[1727286005123,6.6659,150.02,149.97,6.6676]
[1727286005439,20.0,150.05,149.95,34.239348]
[1727286005440,6.6656,150.03,149.98,6.6672]
[1727286005613,1.66656756,150.02,149.98,6.6672]
[1727286006129,6.6658,150.02,149.98,6.6672]
[1727286006720,1.66664902,150.01,149.98,6.6672]
[1727286007018,8.33284902,150.01,149.97,6.6678]
[1727286007222,6.6662,150.01,149.97,6.6678]
[1727286007431,6.6671,149.99,149.95,22.1859]
[1727286007627,6.6667,150.0,149.96,6.6683]
[1727286007827,1.66698011,149.99,149.95,22.1861]
[1727286008019,8.33428011,149.99,149.95,22.1861]
[1727286008227,6.6673,149.99,149.95,22.1861]
[1727286008426,6.6689,149.95,149.91,6.6705]
[1727286008635,6.6689,149.95,149.91,16.3991]
[1727286008636,1.66737187,149.94,149.91,16.3991]
[1727286009133,6.6696,149.94,149.91,16.3991]
[1727286009344,8.33749881,149.93,149.91,16.3991]
[1727286009518,1.66765219,149.97,149.91,16.3991]
[1727286009718,6.6702,149.92,149.91,16.3991]
[1727286010047,23.776884,149.96,149.91,16.3991]
[1727286010048,6.6698,149.93,149.91,16.3991]
[1727286012133,1.66765972,149.92,149.87,15.0872]
[1727286012433,20.0,149.95,149.87,15.0872]
[1727286012434,6.6711,149.9,149.87,15.0872]
[1727286013342,20.0,149.95,149.87,15.0872]
[1727286013542,6.6698,149.93,149.89,6.6714]
[1727286013858,23.776884,149.96,149.9,1.33418038]
[1727286013859,6.6694,149.94,149.9,1.33418038]
[1727286014142,6.6694,149.94,149.9,8.00508038]
[1727286014334,6.6694,149.94,149.89,6.6714]
[1727286015751,6.6705,149.92,149.87,21.7592]
[1727286016618,1.66774997,149.91,149.88,6.6719]
[1727286016832,6.6684,149.96,149.92,6.6701]
[1727286017045,20.0,149.99,149.91,6.6703]
[1727286017231,6.6684,149.96,149.92,6.6701]
[1727286018137,6.6694,149.94,149.88,20.0]
[1727286018334,6.6694,149.94,149.89,6.6712]
[1727286018851,6.6694,149.94,149.9,6.671]
[1727286019054,6.6694,149.94,149.9,8.00502756]
[1727286019244,16.6694,149.98,149.9,6.671]
[1727286019551,6.6697,149.94,149.89,6.6714]
[1727286020060,6.6697,149.93,149.89,6.6714]
[1727286020260,8.33779249,149.92,149.88,6.6718]
[1727286020551,6.6703,149.92,149.88,6.6719]
[1727286020727,16.6715,149.96,149.88,8.00609567]
[1727286020728,6.6699,149.93,149.88,8.00609567]
[1727286020933,23.776884,149.97,149.88,8.00609567]
[1727286020934,6.6694,149.94,149.88,1.33419567]
[1727286021128,6.6694,149.94,149.89,6.6714]
[1727286021343,6.6694,149.94,149.9,1.33405636]
[1727286021752,6.6694,149.94,149.89,6.6714]
[1727286022062,6.6694,149.94,149.9,1.33405682]
[1727286023258,6.6694,149.94,149.89,6.6714]
[1727286023457,23.776884,149.97,149.89,6.6714]
[1727286023642,6.6698,149.93,149.89,6.6714]
[1727286026066,6.6694,149.94,149.9,6.6711]
[1727286027256,23.776884,149.98,149.91,8.00465709]
[1727286027257,6.6685,149.96,149.91,8.00465709]
[1727286028261,20.0,149.98,149.92,1.3338539]
[1727286028454,6.6685,149.96,149.92,8.0038539]
[1727286028649,6.6685,149.96,149.92,6.67]
[1727286028843,6.6681,149.97,149.93,1.33387842]
[1727286029044,6.6681,149.97,149.93,8.00347842]
[1727286029355,6.6681,149.97,149.93,6.6696]
[1727286030866,6.6684,149.96,149.92,6.6701]
[1727286031161,6.6684,149.96,149.89,18.721948]
[1727286031377,1.66728324,149.95,149.9,6.671]
[1727286031748,6.6696,149.94,149.89,6.6713]
[1727286032141,6.6696,149.94,149.87,33.809148]
[1727286032142,6.6696,149.94,149.9,6.6709]
[1727286032946,6.6696,149.94,149.88,20.0]
[1727286033159,6.6697,149.93,149.89,6.6714]
[1727286033580,6.6694,149.94,149.9,6.6711]
[1727286038649,6.6698,149.93,149.89,6.6714]
[1727286038855,1.66746332,149.97,149.88,27.84502938]
[1727286039172,6.6697,149.93,149.89,6.6714]
[1727286039466,6.6697,149.93,149.88,6.6716]
[1727286039668,6.6705,149.92,149.88,6.6716]
[1727286039874,6.6713,149.9,149.87,15.0872]
[1727286040669,6.6703,149.92,149.88,6.6718]
[1727286041649,20.0,149.95,149.87,15.0872]
[1727286041849,6.6699,149.93,149.89,6.6715]
[1727286042549,6.6702,149.92,149.88,6.6716]
[1727286042750,16.6708,149.97,149.89,20.05608064]
[1727286042951,6.6692,149.95,149.91,6.6705]
[1727286043374,6.6693,149.94,149.9,6.6709]
[1727286050782,8.33727374,149.93,149.89,6.6714]
[1727286050987,6.6698,149.93,149.89,6.6714]
[1727286051484,6.6703,149.92,149.88,6.6718]
[1727286051786,6.6703,149.92,149.89,6.6715]
[1727286053583,16.6708,149.97,149.9,1.33414226]
[1727286053899,6.6695,149.94,149.9,6.671]
[1727286054381,6.6695,149.94,149.9,18.65340225]
[1727286060168,16.6708,149.97,149.89,8.33776955]
[1727286060169,6.6703,149.92,149.89,8.33776955]
[1727286060574,20.0,149.96,149.9,13.3165466]
[1727286060887,6.6694,149.94,149.91,11.98240225]
[1727286061264,6.6694,149.94,149.9,8.00514435]
[1727286061497,6.6694,149.94,149.87,15.0872]
[1727286061498,6.6694,149.94,149.89,26.99342679]
[1727286061863,6.6711,149.9,149.89,8.33972454]
[1727286062156,6.6711,149.9,149.78,11.77053217]
[1727286062157,20.0,149.91,149.85,8.33972454]
[1727286062359,20.0,149.91,149.83,27.97530225]
[1727286062360,1.66823353,149.9,149.84,8.33972454]
[1727286062585,6.6729,149.86,149.83,24.33262454]
[1727286062784,6.6729,149.86,149.83,8.33972454]
[1727286063191,6.6729,149.86,149.82,8.33972454]
[1727286063388,1.66835109,149.85,149.79,15.431]
[1727286063690,6.6738,149.84,149.81,8.33511867]
[1727286063988,6.6733,149.85,149.8,15.01051867]
[1727286064191,1.66850114,149.88,149.79,35.74852092]
[1727286064362,6.6725,149.87,149.81,6.6746]
[1727286064566,1.6683607,149.86,149.79,34.17592281]
[1727286064984,6.6737,149.85,149.79,15.431]
[1727286065367,1.66857612,149.84,149.79,15.431]
[1727286065568,6.6738,149.84,149.79,15.431]
[1727286065877,6.6738,149.84,149.79,22.1069]
[1727286066284,1.66866837,149.83,149.79,15.431]
[1727286066474,6.6743,149.83,149.79,15.431]
[1727286066982,1.66877379,149.82,149.74,15.5173]
[1727286067202,6.675,149.82,149.76,6.6773]
[1727286067693,6.6752,149.81,149.76,6.6773]
[1727286067868,6.6747,149.82,149.77,8.01193171]
[1727286068176,6.6747,149.82,149.77,6.6767]
[1727286068571,1.66887866,149.81,149.77,6.6767]
[1727286068776,8.34364194,149.82,149.77,6.6767]
[1727286069993,6.6747,149.82,149.77,6.6767]
[1727286071397,6.6736,149.85,149.8,6.6754]
[1727286071596,21.0996,149.86,149.8,6.6754]
[1727286072369,6.6734,149.85,149.81,8.00994904]
[1727286072592,6.6738,149.84,149.8,6.6755]
[1727286074597,6.6738,149.84,149.8,22.0543]
[1727286075096,21.66857239,149.87,149.8,34.12372281]
[1727286075271,6.6729,149.86,149.82,6.6745]
[1727286075598,6.6733,149.85,149.81,6.675]
[1727286077785,6.6693,149.94,149.89,6.6714]
[1727286077983,0.57104541,149.93,149.89,6.6714]
[1727286078189,6.6707,149.91,149.86,22.2521]
[1727286078378,6.6711,149.9,149.86,15.5794]
[1727286078880,0.57104541,149.94,149.86,15.5794]
[1727286079192,6.6707,149.91,149.86,22.2518]
[1727286079390,0.57104541,149.9,149.86,22.2518]
[1727286080174,16.6728,149.95,149.85,6.6732]
[1727286080373,6.6712,149.9,149.85,6.6732]
[1727286081500,6.6717,149.89,149.85,6.6732]
[1727286081677,7.24304541,149.88,149.84,6.6737]
[1727286081994,6.672,149.88,149.84,6.6737]
[1727286082201,6.672,149.88,149.83,6.6741]
[1727286082421,7.24374541,149.87,149.82,22.8981]
[1727286082578,6.6721,149.88,149.83,6.6739]
[1727286082904,0.57104541,149.87,149.84,6.6736]
[1727286083406,6.6715,149.89,149.85,6.6733]
[1727286083577,20.0,149.91,149.82,41.64302281]
[1727286083924,6.6717,149.89,149.84,6.6736]
[1727286084111,0.57104541,149.88,149.84,6.6736]
[1727286084309,20.0,149.93,149.85,1.33451829]
[1727286084607,20.0,149.93,149.86,6.6727]
[1727286084608,6.6711,149.9,149.86,6.6727]
[1727286084975,7.24254541,149.89,149.85,6.6732]
[1727286085186,6.6715,149.89,149.85,6.6732]
[1727286085505,6.6711,149.9,149.86,6.6728]
[1727286085796,7.24254541,149.89,149.85,6.6732]
[1727286085997,20.0,149.94,149.82,41.64302281]
[1727286085998,0.57104541,149.93,149.82,41.64302281]
[1727286086175,6.6706,149.91,149.87,6.6723]
[1727286086590,0.57104541,149.9,149.86,18.66219153]
[1727286086800,7.24214541,149.9,149.86,18.66219153]
[1727286087274,6.6707,149.91,149.86,18.66219153]
[1727286089985,6.6703,149.92,149.88,18.66139153]
[1727286090192,0.57104541,149.91,149.83,23.776884]
[1727286090398,6.6718,149.89,149.85,6.6733]
[1727286090594,16.6749,149.93,149.84,6.6737]
[1727286090595,7.24304541,149.88,149.84,6.6737]
[1727286090904,6.672,149.88,149.84,6.6737]
[1727286091591,0.57104541,149.87,149.84,6.6737]
[1727286091799,6.672,149.88,149.84,6.6737]
[1727286092296,6.6724,149.87,149.83,18.66359153]
[1727286092803,6.6724,149.87,149.83,20.71245383]
[1727286093396,6.6721,149.88,149.84,6.6737]
[1727286093601,6.6716,149.89,149.85,18.66269153]
[1727286093786,6.6716,149.89,149.85,11.98949153]
[1727286094814,6.6716,149.89,149.85,25.83771183]
[1727286096602,0.57104541,149.88,149.85,19.16481183]
[1727286096797,0.57104541,149.88,149.85,7.1753203]
[1727286097818,6.6728,149.86,149.85,7.1753203]
[1727286099106,6.6724,149.88,149.85,7.1753203]
[1727286099520,0.57104541,149.9,149.85,7.1753203]
[1727286099806,6.6727,149.87,149.85,7.1753203]
[1727286101925,7.24384541,149.86,149.85,7.1753203]
[1727286102227,6.6728,149.86,149.85,7.1753203]
[1727286103545,30.449684,149.86,149.85,7.1753203]
[1727286103751,50.449684,149.86,149.85,7.1753203]
[1727286109846,50.449684,149.86,149.85,2.6614203]
[1727286110151,50.450584,149.84,149.83,0.405746]
[1727286110341,51.02162941,149.84,149.83,0.405746]
[1727286114152,51.02162941,149.84,149.83,4.6e-05]
[1727286114851,50.452384,149.8,149.79,0.2455097]
[1727286117252,50.452384,149.8,149.74,0.405746]
[1727286117253,30.454584,149.75,149.74,0.405746]
[1727286117832,6.6777,149.75,149.74,0.405746]
[1727286119244,30.454584,149.75,149.74,0.405746]
[1727286119626,50.454584,149.75,149.74,0.405746]
[1727286120249,70.514584,149.75,149.74,0.405746]
[1727286121042,71.08562941,149.75,149.74,0.405746]
[1727286121245,30.456384,149.71,149.7,0.24553754]
[1727286121732,6.6795,149.71,149.7,0.24553754]
[1727286121941,7.25054541,149.71,149.7,0.24553754]
[1727286122234,30.456384,149.71,149.7,0.24553754]
[1727286122831,6.6795,149.71,149.7,0.24553754]
[1727286123356,7.25054541,149.71,149.7,0.24553754]
[1727286124160,6.6795,149.71,149.7,0.24553754]
[1727286124362,7.25054541,149.71,149.7,0.24553754]
[1727286125053,20.0,149.74,149.7,0.24553754]
[1727286125054,0.57104541,149.73,149.7,0.24553754]
[1727286125260,6.6795,149.71,149.7,0.24553754]
[1727286125838,6.6792,149.72,149.7,0.24553754]
[1727286126357,0.57104541,149.71,149.7,0.24553754]
[1727286126872,6.6779,149.75,149.7,0.24553754]
[1727286127163,0.57104541,149.74,149.7,0.24553754]
[1727286127331,6.6795,149.71,149.7,0.24553754]
[1727286127535,7.25054541,149.71,149.7,0.24553754]
[1727286128238,31.02742941,149.71,149.7,0.24553754]
[1727286128652,51.02742941,149.71,149.7,0.24553754]
[1727286128980,6.6818,149.66,149.65,0.2455097]
[1727286130150,0.57104541,149.68,149.62,5.55518256]
[1727286130334,6.6831,149.63,149.62,5.55518256]
[1727286132665,50.459984,149.63,149.62,5.55518256]
[1727286133049,30.459984,149.63,149.62,5.55518256]
[1727286134135,50.459984,149.63,149.62,8.256e-05]
[1727286134360,51.03102941,149.63,149.62,8.256e-05]
[1727286135545,30.459984,149.63,149.62,8.256e-05]
[1727286136961,6.6849,149.59,149.58,0.2871621]
[1727286139149,30.461784,149.59,149.58,0.2871621]
[1727286141773,31.03282941,149.59,149.58,0.2871621]
[1727286141970,6.6849,149.59,149.58,0.2871621]
[1727286145087,46.4384,149.71,149.59,6.2933]
[1727286145260,6.6822,149.65,149.61,6.6839]
[1727286145460,23.0078,149.71,149.6,16.7105]
[1727286145672,6.6818,149.66,149.61,6.6837]
[1727286145981,6.6818,149.66,149.6,16.7105]
[1727286145982,6.6816,149.67,149.6,35.51592703]
[1727286146280,0.57104541,149.7,149.59,6.2933]
[1727286146281,6.6805,149.69,149.64,22.287]
[1727286146491,7.25204541,149.68,149.64,15.6045]
[1727286146669,0.57104541,149.67,149.64,15.6045]
[1727286146866,6.6805,149.69,149.64,22.2868]
[1727286147064,0.57104541,149.68,149.64,22.2868]
[1727286147684,6.6805,149.69,149.64,22.2868]
[1727286148192,0.57104541,149.68,149.64,22.2868]
[1727286148499,6.6805,149.69,149.64,22.2868]
[1727286148700,6.6805,149.69,149.64,15.6045]
[1727286148896,6.6791,149.72,149.67,6.6811]
[1727286149199,6.6787,149.73,149.68,6.6808]
[1727286150075,6.6785,149.74,149.69,6.6804]
[1727286150279,6.6779,149.75,149.7,6.6799]
[1727286150465,6.6783,149.74,149.7,6.6799]
[1727286151190,7.24974541,149.73,149.69,6.6804]
[1727286151507,0.57104541,149.72,149.68,23.383]
[1727286152277,0.57104541,149.71,149.68,23.383]
[1727286152492,0.57104541,149.72,149.69,16.445]
[1727286152690,6.6774,149.76,149.72,6.6791]
[1727286152988,0.57104541,149.75,149.69,35.25042703]
[1727286153293,7.24904541,149.75,149.7,23.3787]
[1727286153677,6.6785,149.74,149.7,16.6991]
[1727286153876,6.6796,149.71,149.69,16.445]
[1727286154491,7.25104541,149.7,149.69,16.445]
[1727286154675,6.68,149.7,149.66,6.4024]
[1727286154878,0.57104541,149.69,149.66,6.4024]
[1727286156779,0.57104541,149.69,149.63,16.7073]
[1727286157101,6.6814,149.67,149.63,16.7073]
[1727286157610,6.6814,149.67,149.63,23.3903]
[1727286158279,6.6809,149.68,149.64,6.6825]
[1727286158479,6.6803,149.7,149.64,6.6822]
[1727286158791,6.68,149.71,149.65,16.705]
[1727286159023,0.57104541,149.7,149.66,6.6817]
[1727286159304,0.57104541,149.74,149.65,16.705]
[1727286159480,6.6797,149.71,149.65,16.705]
[1727286159891,16.6947,149.75,149.67,6.681]
[1727286160203,6.6796,149.71,149.67,6.681]
[1727286160907,6.6792,149.72,149.67,6.681]
[1727286161119,0.57104541,149.71,149.67,6.681]
[1727286161293,6.6792,149.72,149.67,6.681]
[1727286162491,7.25054541,149.71,149.67,6.681]
[1727286162690,7.25104541,149.7,149.66,6.6817]
[1727286162909,6.68,149.7,149.66,6.6817]
[1727286163913,6.6807,149.69,149.65,23.3872]
[1727286164082,6.6807,149.69,149.65,16.705]
[1727286164290,6.6807,149.69,149.65,23.3872]
[1727286165017,16.6971,149.73,149.65,16.705]
[1727286165018,7.25204541,149.68,149.65,16.705]
[1727286165192,16.6971,149.73,149.65,16.705]
[1727286165388,6.6805,149.69,149.65,16.705]
[1727286166103,6.6805,149.69,149.65,18.04127155]
[1727286166528,33.3893,149.75,149.62,15.1835]
[1727286166529,6.6818,149.66,149.62,21.8668]
[1727286167302,17.27044541,149.71,149.62,31.8921]
[1727286167509,6.6822,149.65,149.62,31.8921]
[1727286167713,6.6822,149.65,149.62,15.1835]
[1727286169586,6.6829,149.64,149.62,15.1835]
[1727286170006,6.6824,149.65,149.62,15.1835]
[1727286171539,6.6827,149.64,149.62,15.1835]
[1727286171695,0.57104541,149.68,149.62,15.1835]
[1727286172012,0.57104541,149.68,149.59,29.4455]
[1727286172313,6.6831,149.63,149.59,29.4455]
[1727286173593,0.57104541,149.68,149.59,29.4455]
[1727286173815,6.6828,149.64,149.6,6.6844]
[1727286175610,0.57104541,149.68,149.6,6.6844]
[1727286175811,16.7018,149.69,149.59,22.761]
[1727286175812,6.6824,149.65,149.61,6.6838]
[1727286176318,6.6824,149.65,149.59,22.761]
[1727286176319,6.6832,149.63,149.59,29.4456]
[1727286176491,6.6804,149.7,149.63,6.6831]
[1727286176817,6.6804,149.7,149.66,6.6814]
[1727286176818,6.6802,149.7,149.66,6.6814]
[1727286176999,6.6802,149.7,149.66,16.7042]
[1727286177000,6.6801,149.7,149.66,16.7042]
[1727286177203,6.6801,149.7,149.66,23.3859]
[1727286177407,6.6795,149.71,149.66,23.3859]
[1727286178331,6.6801,149.7,149.66,23.3859]
[1727286178722,7.25114541,149.7,149.66,23.3859]
[1727286178911,6.6801,149.7,149.66,23.3859]
[1727286179729,7.25154541,149.69,149.65,23.0999]
[1727286179903,6.6805,149.69,149.65,23.0999]
[1727286180104,0.57104541,149.68,149.65,16.4178]
[1727286180433,7.25194541,149.68,149.65,16.4178]